Cogmind - Beta 12 @@@ ROGUE MODE // 2023.03.08 @ 16:14:23 Player: ArabianSandBoa Result: Destroyed by as-10857 with Assembled Blade Performance ------------- Evolutions (0) 0 Regions Visited (4) 800 Robots Destroyed (9) 45 Value Destroyed (283) 283 Prototype IDs (23) 460 Alien Tech Used (0) 0 Bonus (312) 312 TOTAL SCORE: 1900 Bonus ------- Follower Combat Kills 25 Aligned with FarCom 300 Friendly Fire -13 Cogmind --------- Core Integrity 0/250 Matter 215/300 Energy 250/250 System Corruption 5% Temperature Cool (0) Movement Walking (260) Ox2 Location -9/Mines Parts ------- > --- POWER (1) -------- Ion Engine > --- PROPULSION (2) --- Aluminum Leg > --- UTILITY (2) ------ Large Storage Unit > --- WEAPON (2) ------- Mining Claw > --- INVENTORY (15) --- Light Treads Aluminum Leg YOLO Cannon Peak State ------------ > --- POWER ------------ (None) > --- PROPULSION ------- Aluminum Leg Carbon-fiber Leg > --- UTILITY ---------- Improved Heat Sink Large Storage Unit > --- WEAPON ----------- YOLO Cannon > --- INVENTORY -------- Ion Engine Light Treads Light Treads Aluminum Leg Wheel Wheel Assault Rifle Assault Rifle Light Assault Rifle Mining Claw [Rating: 29] Favorites ----------- Power Light Ion Engine Engine Light Ion Engine Propulsion Aluminum Leg Treads Light Treads Leg Aluminum Leg Wheel Wheel Utility Large Storage Unit Device Improved Heat Sink Storage Large Storage Unit Protection Light Armor Plating Weapon Assault Rifle Energy Gun Heavy EM Pulse Gun Energy Cannon YOLO Cannon Ballistic Gun Assault Rifle Slashing Weapon Mining Claw Build | -11 -10 -10 -10 -9 ------- Run | Jun Mat Min Exi Min Slots Evolved . | . . . . . Power . | . . . . . Propulsion . | . . . . . Utility . | . . . . . Weapon . | . . . . . Parts Attached 20 | 1 . 3 4 12 Power 1 | . . . . 1 Engine 1 | . . . . 1 Core . | . . . . . Reactor . | . . . . . Propulsion 7 | . . 1 2 4 Treads 2 | . . . . 2 Leg 3 | . . 1 . 2 Wheel 2 | . . . 2 . Hover . | . . . . . Flight . | . . . . . Utility 4 | . . 2 1 1 Device 2 | . . . 1 1 Storage 1 | . . 1 . . Processor . | . . . . . Hackware . | . . . . . Protection 1 | . . 1 . . Artifact . | . . . . . Weapon 8 | 1 . . 1 6 Energy Gun 1 | . . . . 1 Energy Cannon 1 | . . . 1 . Ballistic Gun 5 | 1 . . . 4 Ballistic Cannon . | . . . . . Launcher . | . . . . . Special Weapon . | . . . . . Impact Weapon . | . . . . . Slashing Weapon 1 | . . . . 1 Piercing Weapon . | . . . . . Special Melee Weapon . | . . . . . Unidentified Prototypes . | . . . . . Parts Lost 11 | . . 2 1 8 Power 1 | . . 1 . . Propulsion 4 | . . . . 4 Utility 3 | . . 1 1 1 Weapon 3 | . . . . 3 Highest Loss Streak 4 | . . 2 1 4 To Critical Strikes . | . . . . . Average Slot Usage (%) 87 | . 85 97 69 80 Engine 9 | . 14 13 . 13 Treads 2 | . . . . 11 Leg 22 | . 28 28 23 3 Wheel 2 | . . . 4 9 Storage 14 | . 14 14 14 14 Protection 6 | . . 12 . . Energy Cannon 1 | . . . 3 1 Ballistic Gun 24 | . 28 28 20 21 Naked Turns . | . . . . . Heaviest Build 39 | 12 12 32 39 38 Greatest Support 25 | 20 20 25 25 25 Greatest Overweight (x) 3 | . . 1 3 1 Average Overweight (x) . | . . . . 1 Largest Inventory Capacity 15 | 8 8 15 15 15 Average Capacity 14 | 8 8 14 15 15 Most Carried 14 | 6 6 9 14 10 Average Carried 9 | 6 6 8 11 8 Final Capacity 15 | 8 8 15 15 15 Final Carried 10 | 6 6 9 10 4 Class Distribution -------------------- 100% | Mutant Dominant Class ---------------- Mutant | -10/Mines Mutant | -10/Exiles Mutant | -9/Mines Resources | -11 -10 -10 -10 -9 ----------- Run | Jun Mat Min Exi Min Matter Collected 540 | 200 . 124 . 216 Remotely . | . . . . . Salvage Created 382 | . . 175 . 207 Parts 10 | . . 9 . 1 Haulers Intercepted . | . . . . . Recyclers Shooed 1 | . . . . 1 Parts Field Recycled . | . . . . . Retrieved Matter . | . . . . . Parts Self-Destructed . | . . . . . Prevented . | . . . . . Kills | -11 -10 -10 -10 -9 ------- Run | Jun Mat Min Exi Min Combat Hostiles Destroyed 17 | . . 6 . 11 Guns 15 | . . 6 . 9 Cannons 1 | . . . . 1 AOE 1 | . . . . 1 Classes Destroyed 3 | . . 2 . 1 Swarmer 3 | . . 3 . . Grunt 6 | . . 3 . 3 Assembled 8 | . . . . 8 Best Kill Streak 7 | . . 2 . 7 Combat Bots Only 7 | . . 2 . 7 Max Kills in Single Turn 2 | . . 1 . 2 Gunslinging . | . . . . . Exploded 1 | . . . . 1 Melee . | . . . . . Uniques/NPCs Destroyed . | . . . . . Combat | -11 -10 -10 -10 -9 -------- Run | Jun Mat Min Exi Min Damage Taken 1412 | . . 315 218 879 Core 271 | . . 55 21 195 Absorbed by Shields . | . . . . . Core Remaining (%) 100 | 100 . . . . Volleys Fired 59 | . . 24 2 33 Largest 2 | . . 2 2 2 Hottest 100 | . . 40 100 100 Shots Fired 113 | . . 48 3 62 Gun 110 | . . 48 2 60 Cannon 3 | . . . 1 2 Launcher . | . . . . . Special . | . . . . . Kinetic 92 | . . 48 2 42 Thermal 3 | . . . 1 2 Explosive . | . . . . . Electromagnetic 18 | . . . . 18 Robot Hit Streak 11 | . . 6 . 11 Robot Miss Streak 6 | . . 2 3 6 Penetration Max . | . . . . . Secondary Targets . | . . . . . Shots Hit Robots 70 | . . 31 . 39 Core Hits 32 | . . 12 . 20 Critical Kills . | . . . . . Critical Parts Destroyed . | . . . . . Critical Strikes 1 | . . . . 1 Corrupt 1 | . . . . 1 Melee Attacks 2 | . . . . 2 Impact . | . . . . . Slashing 2 | . . . . 2 Piercing . | . . . . . Sneak Attacks . | . . . . . Combat Hostiles . | . . . . . Follow-up Attacks . | . . . . . Damage Inflicted 1233 | . . 436 . 797 Guns 918 | . . 436 . 482 Cannons 76 | . . . . 76 Explosions 239 | . . . . 239 Melee . | . . . . . Ramming . | . . . . . Kinetic 788 | . . 436 . 352 Thermal 315 | . . . . 315 Explosive . | . . . . . Electromagnetic 130 | . . . . 130 Impact . | . . . . . Slashing . | . . . . . Piercing . | . . . . . Highest Corruption 5 | . . . . 5 Average Corruption 5 | . . . . 5 Corruption Purged . | . . . . . Corruption Blocked . | . . . . . Effects 1 | . . . . 1 Matter Fused 1 | . . . . 1 Overload Shots . | . . . . . Overflow Damage 62 | . . . . 62 Projectiles . | . . . . . Explosions 62 | . . . . 62 Melee . | . . . . . Knockbacks . | . . . . . Impact . | . . . . . Kinetic . | . . . . . Secondary . | . . . . . Self-Inflicted Damage 73 | . . . . 73 Shots 1 | . . . . 1 Rammed . | . . . . . Targets Rammed . | . . . . . Kicked . | . . . . . Crushed . | . . . . . Highest Temperature 41 | . . 7 . 41 Average Temperature 9 | . . 3 . 11 Received Heat Transfer 321 | . . 171 30 120 Siege Activations . | . . . . . Robots Corrupted . | . . . . . Combat Hostiles . | . . . . . Parts Fried . | . . . . . Impact Corruptions . | . . . . . Robots Melted . | . . . . . Combat Hostiles . | . . . . . Parts Melted 1 | . . . . 1 Heat Transferred 400 | . . . . 400 Parts Sabotaged . | . . . . . Parts Stolen . | . . . . . Parts Stripped . | . . . . . Power Chain Reactions . | . . . . . Missiles Intercepted . | . . . . . Alert | -11 -10 -10 -10 -9 ------- Run | Jun Mat Min Exi Min Peak Influence 115 | . . 115 . 87 Initial . | . . . . . Average 40 | . . 30 . 72 Maximum Alert Level . | . . . . . Low Security (%) 100 | 100 100 100 . 100 Level 1 . | . . . . . Level 2 . | . . . . . Level 3 . | . . . . . Level 4 . | . . . . . Level 5 . | . . . . . High Security . | . . . . . Max Security . | . . . . . Squads Dispatched . | . . . . . Investigation . | . . . . . Extermination . | . . . . . Reinforcement . | . . . . . Assault . | . . . . . Garrison . | . . . . . Intercept . | . . . . . Searches Triggered . | . . . . . Construction Impeded . | . . . . . Haulers Reinforced . | . . . . . Active Scanning Responses . | . . . . . Cargo Convoy Interrupts . | . . . . . Stealth | -11 -10 -10 -10 -9 --------- Run | Jun Mat Min Exi Min Distress Signals 1 | . . . . 1 Communications Jammed . | . . . . . Distress Signals . | . . . . . Times Spotted 26 | . . 7 5 14 Peak Tracking Total 7 | . . 3 5 7 Tactical Retreats 1 | . . 1 . . Traps | -11 -10 -10 -10 -9 ------- Run | Jun Mat Min Exi Min Traps Triggered . | . . . . . Indirectly . | . . . . . Trap Hack Attempts . | . . . . . Triggered . | . . . . . Disarmed . | . . . . . Reprogrammed . | . . . . . Reused . | . . . . . Traps Extracted . | . . . . . Installed . | . . . . . Triggered . | . . . . . Exploded 3 | . . . 3 . Machines | -11 -10 -10 -10 -9 ---------- Run | Jun Mat Min Exi Min Machines Disabled 3 | . . . 2 1 Max in Single Turn 1 | . . . 1 1 Machines Repaired . | . . . . . Machines Sabotaged . | . . . . . Overloaded Fab Kills . | . . . . . Hacking | -11 -10 -10 -10 -9 --------- Run | Jun Mat Min Exi Min Machines Accessed 1 | . . . 1 . Terminals . | . . . . . Fabricators . | . . . . . Repair Stations . | . . . . . Recycling Units . | . . . . . Scanalyzers . | . . . . . Garrison Access . | . . . . . Total Hacks 1 | . . . 1 . Successful 1 | . . . 1 . Failed . | . . . . . Catastrophic . | . . . . . Database Lockouts . | . . . . . Manual 1 | . . . 1 . Terminals . | . . . . . Fabricators . | . . . . . Repair Stations . | . . . . . Recycling Units . | . . . . . Scanalyzers . | . . . . . Garrison Access . | . . . . . Terminal Hacks 1 | . . . 1 . EX-Prototype ID Bank 1 | . . . 1 . Fabricator Hacks . | . . . . . Repair Station Hacks . | . . . . . Recycling Unit Hacks . | . . . . . Scanalyzer . | . . . . . Garrison Access Hacks . | . . . . . Unauthorized Hacks . | . . . . . Terminals . | . . . . . Fabricators . | . . . . . Repair Stations . | . . . . . Recycling Units . | . . . . . Scanalyzers . | . . . . . Garrison Access . | . . . . . Data Cores Recovered . | . . . . . Used . | . . . . . Hacking Detections . | . . . . . Full Trace Events . | . . . . . Feedback Events . | . . . . . Feedback Blocked . | . . . . . Robot Schematics Acquired . | . . . . . Robots Built . | . . . . . Authchips . | . . . . . Time . | . . . . . Total Robot Build Rating . | . . . . . Part Schematics Acquired . | . . . . . Parts Built . | . . . . . Authchips . | . . . . . Time . | . . . . . Total Part Build Rating . | . . . . . Parts Repaired . | . . . . . Time . | . . . . . Parts Recycled . | . . . . . Recycled Matter . | . . . . . Retrieved Matter . | . . . . . Retrieved Components . | . . . . . Parts Scanalyzed . | . . . . . Part Schematics Acquired . | . . . . . Parts Damaged . | . . . . . Bothacking | -11 -10 -10 -10 -9 ------------ Run | Jun Mat Min Exi Min Used RIF Installer . | . . . . . Robots Hacked . | . . . . . Non-combat . | . . . . . Combat . | . . . . . Robot Hacks Applied . | . . . . . Relay Couplers Released . | . . . . . Fabnet Peak Effective % . | . . . . . Robots Rewired . | . . . . . Allies Hacked . | . . . . . Hacks Repelled . | . . . . . Allies | -11 -10 -10 -10 -9 -------- Run | Jun Mat Min Exi Min Total Allies 2 | . . 2 . . Largest Group 2 | . . 2 . . Highest-Rated Group 45 | . . 45 . . Highest-Rated Ally 31 | . . 31 . . Total Orders . | . . . . . Ally Attacks 7 | . . 7 . . Total Damage 107 | . . 107 . . Kills 1 | . . 1 . . Allies Corrupted . | . . . . . Allies Melted . | . . . . . Intel | -11 -10 -10 -10 -9 ------- Run | Jun Mat Min Exi Min Robot Analysis Total . | . . . . . Derelict Logs Recovered 2 | . . 2 . . Drone Launches . | . . . . . Drone Recoveries . | . . . . . Exploration | -11 -10 -10 -10 -9 ------------- Run | Jun Mat Min Exi Min Turns Passed 1380 | 2 9 761 343 265 Spaces Moved 698 | 1 8 368 261 60 Core . | . . . . . Treads 55 | . . . . 55 Legs 589 | 1 8 368 210 2 Wheels 54 | . . . 51 3 Hover . | . . . . . Flight . | . . . . . Fastest Speed 95 | 120 120 120 95 95 Average Speed 160 | 120 120 180 117 231 Slowest Speed 240 | 120 120 190 190 240 Overloaded Moves . | . . . . . Propulsion Burnouts . | . . . . . Robots Hopped . | . . . . . Cave-ins Triggered . | . . . . . Exploration Rate (%) 35 | 2 2 92 69 10 Regions Visited 4 Branch Regions 3 Pre-discovered Areas 1 | . . 1 . . Known Exits Taken 1 | . . 1 . . Unknown Exits Taken 3 | 1 1 . 1 . Scrap Searched 4 | . . 3 . 1 Spaces Dug . | . . . . . Terrain Destroyed 24 | . . . 7 17 Melee . | . . . . . Projectile . | . . . . . AOE 24 | . . . 7 17 Terrain Rammed . | . . . . . Walls Destroyed . | . . . . . Machines Disabled . | . . . . . Actions | -11 -10 -10 -10 -9 --------- Run | Jun Mat Min Exi Min Total 833 | 1 7 415 292 118 Wait 43 | . . 18 17 8 Move 694 | . 7 367 260 60 Hop . | . . . . . Pick Up 8 | . . 2 4 2 Fast Attach 2 | . . 2 . . Attach 12 | . . . 2 10 Detach 3 | . . . 2 1 Swap 6 | 1 . 1 2 2 Drop 4 | . . 1 3 . Fire 59 | . . 24 2 33 Melee 2 | . . . . 2 Ram . | . . . . . Kick . | . . . . . Crush . | . . . . . Escape Stasis . | . . . . . Rewire . | . . . . . Trap . | . . . . . Miscellaneous . | . . . . . Route ------- -11/Junkyard -10/Materials -10/Mines (discovered 3 exits: [*Mat x2] / *Exi) -10/Exiles -9/Mines History --------- Turn | Location | Event 3 | -11/Junkyard | Discovered new exit (range 0) 3 | -11/Junkyard | Entered Materials 3 | -10/Materials | Discovered new exit (range 7) 12 | -10/Materials | Entered Mines 118 | -10/Mines | Discovered new exit (range 9) 234 | -10/Mines | Identified exit to Exiles 302 | -10/Mines | Build established: Mutant 429 | -10/Mines | Discovered new exit (range 5) 490 | -10/Mines | Learned location of Zion (-6) 768 | -10/Mines | Deemed a non-threat by the Exiles lab entrance 773 | -10/Mines | Entered Exiles 809 | -10/Exiles | Met 8R-AWN 828 | -10/Exiles | Met EX-HEX 864 | -10/Exiles | Met EX-BIN 878 | -10/Exiles | Aligned with FarCom system 880 | -10/Exiles | Given EX-Vault access code 908 | -10/Exiles | Opened EX-Vault 918 | -10/Exiles | Found YOLO Cannon 942 | -10/Exiles | Warned to stay clear of 0b10 Research branches 958 | -10/Exiles | Exiles lab attacked by MAIN.C 1107 | -10/Exiles | Discovered new exit (range 10) 1116 | -10/Exiles | Left Exiles lab with YOLO Cannon 1116 | -10/Exiles | Entered Mines 1150 | -9/Mines | Core integrity fell below 50% 1267 | -9/Mines | Assembled infested the area 1272 | -9/Mines | Assisted by a Guerilla fighting off Assembled 1322 | -9/Mines | Core integrity fell below 20% 1361 | -9/Mines | Destroyed 7 combat bots 1381 | -9/Mines | Destroyed by as-10857 with Assembled Blade Last Messages --------------- 01329_ Acquired 20 matter. 01331_ Assault Rifle destroyed. 01331_ as-00324 destroyed. 01332_ Acquired 18 matter. 01340_ as-95506 destroyed. 01341_ Acquired 16 matter. 01343_ Acquired 18 matter. 01349_ Acquired 12 matter. 01367_ as-10857 sneak attacks. 01367_ T-07 Excavator destroyed. 01367_ Hvy. EM Pulse Gun destroyed. 01367_ Heat Sink destroyed. 01367_ System corrupted by crushing effect (+2). 01367_ System corrupted by crushing effect (+3). 01367_ Knocked back. 01369_ System corrupted: Matter fused (-10). 01369_ as-16372 destroyed. 01373_ Assault Rifle destroyed. 01373_ Carbon-fiber Leg destroyed. 01376_ Lgt. Assault Rifle severed. Map ----- +----------------------------------------------------+ | ????????????????????????????????????????? | | ????????????????????????????????????????? | | ????????????????????????????????????????? | | ????????????????????????????????????????? | | ????????????????????????????????????????? | | ????????????????????????????????????????? | | ????????????????????????????????????????? | | ????????????????????????????????????????? | | ????????????????????????????????????????? | | ????????????????????????????????????????? | | ????????????????????????????????????????? | | ???????????????????d????????????????????? | | ????????????????????????????????????????? | | ????????????????????????????????????????? | | ????????????????????????????????????????? | | ????????????????????????????????????????? | | ????????????????????????????????????????? | | ????????????????????????????????????????? | | ????????????????????????????????????????? | | ????????????????????????????????????????? | | ????????????????????????????????????????? | | ????????????????????????????????????????? | | ????????????????????????????????????????? | | ????????#####???????????????????????????? | | ????????# ####????????#####%=#%#??????? | | ????????# #????????#@au*%!|*% #????? | | ????????## ## ########## ##;=;;%#??????? | | ?????????##### ## = #??? %% ??? | | ?????????????# ## #########????? #? | | ?????????????# ## #??????????????? "# | | ?????????????# ## #?????????????????"" #? | | #######??????# #?????????????????????? | | #"""""####???# ####?????????????????????? | | #???# #????????????????????????? | | #???# #????????????????????????? | | ##### #????????????????????????? | | #????????????????????????? | | #######????????????????????????? | | #??????????????????????????????? | | #??????????????????????????????? | | """"""####??????????????????????????????? | | ##?????????????????????????????????? | | ######??????????????????????????????????? | | | | | | | | | | | | | | | +----------------------------------------------------+ Best States ------------- Heat Dissipation 39 Energy Generation 10 Energy Capacity 250 Matter Stores 300 Matter Capacity 300 Sight Range 16 Terrain Scan Density 10 Armor Coverage 150 Evasion (%) 55 Recoil Reduction 1 Item Schematics ----------------- None Robot Schematics ------------------ None Fabricated ------------ Nothing Alien Tech Used ----------------- None Achievements -------------- None Challenges ------------ None Game ------ Seed ImpulseMediumMatter Manual? 0 Play Time 00:12:22 Cumulative 428.7 hours Start 2023.03.08 @ 15:53:03 End 2023.03.08 @ 16:14:23 Sessions 1 Manual Loads 0 Difficulty Rogue Special Mode None Game No. 486 Rogue 486 Adventurer 0 Explorer 0 Win Type - Total 0 Types 0/0/0/0/0/0/0/0/0 Lore% 59 Gallery% 78 Achievement% 64 Wizard Run 0 Options --------- ASCII 0 Keyboard 0 Movement Mouse Keybinds 0 Fullscreen 2 Font 24/Smallcaps Map View 76x50 Tactical HUD 1 Map Filters NONE Filters NONE Steam 1 RUN: b77e5833-bbec-45f4-aaee-555739072a75